fUSD/lending_fUSD_20240425
["ID","MTS","AMOUNT","RATE_DAILY","PERIOD"]
[323515372,1714062642871,-1238.94,0.00010991,2]
[323515373,1714062642881,-500.0,0.00010991,2]
[323515374,1714062642890,-500.0,0.00010991,2]
[323515375,1714062642900,-500.0,0.00010991,2]
[323515376,1714062642910,-500.0,0.00010991,2]
[323515377,1714062642919,-603.61,0.00010991,2]
[323515378,1714062642929,-500.0,0.00010991,2]
[323515379,1714062642939,-441.95609882,0.00010992,2]
[323515380,1714062642949,-534.39606197,0.00010992,2]
[323515381,1714062642959,-500.0,0.00010992,2]
[323515382,1714062642968,-500.0,0.00010992,2]
[323515383,1714062642978,-500.0,0.00010992,2]
[323515384,1714062642987,-155.43489647,0.00010992,2]
[323515385,1714062642997,-500.0,0.00010992,2]
[323515386,1714062643006,-500.0,0.00010992,2]
[323515387,1714062643015,-500.0,0.00010992,2]
[323515388,1714062643025,-500.0,0.00010992,2]
[323515389,1714062643035,-500.0,0.00010992,2]
[323515390,1714062643045,-500.0,0.00010992,2]
[323515391,1714062643055,-500.0,0.00010992,2]
[323515392,1714062643065,-500.0,0.00010992,2]
[323515393,1714062643074,-500.0,0.00010992,2]
[323515394,1714062643084,-500.0,0.00010992,2]
[323515395,1714062643093,-500.0,0.00010992,2]
[323515396,1714062643105,-500.0,0.00010992,2]
[323515397,1714062643114,-500.0,0.00010992,2]
[323515398,1714062643123,-500.0,0.00010992,2]
[323515399,1714062643132,-500.0,0.00010992,2]
[323515400,1714062643142,-581.14362314,0.00010992,2]
[323515401,1714062643151,-500.0,0.00010992,2]
[323515402,1714062643160,-498.80365448,0.00010992,2]
[323515403,1714062643169,-500.0,0.00010992,2]
[323515404,1714062643178,-500.0,0.00010992,2]
[323515405,1714062643188,-589.5,0.00010992,2]
[323515406,1714062643197,-633.51560924,0.00010992,2]
[323515407,1714062643206,-502.70439157,0.00010992,2]
[323515408,1714062643215,-500.0,0.00010992,2]
[323515409,1714062643225,-500.0,0.00010992,2]
[323515410,1714062643234,-500.0,0.00010992,2]
[323515411,1714062643244,-500.0,0.00010992,2]
[323515412,1714062643253,-500.0,0.00010992,2]
[323515413,1714062643262,-505.59858806,0.00010992,2]
[323515414,1714062643271,-500.0,0.00010992,2]
[323515415,1714062643280,-500.0,0.00010992,2]
[323515416,1714062643289,-500.0,0.00010992,2]
[323515417,1714062643299,-500.0,0.00010992,2]
[323515419,1714062643309,-505.1747429,0.00010992,2]
[323515421,1714062643319,-500.0,0.00010992,2]
[323515422,1714062643328,-500.0,0.00010992,2]
[323515423,1714062643337,-500.0,0.00010992,2]
[323515425,1714062643346,-500.0,0.00010992,2]
[323515427,1714062643358,-500.0,0.00010992,2]
[323515428,1714062643367,-500.0,0.00010992,2]
[323515429,1714062643376,-514.38,0.00010992,2]
[323515430,1714062643385,-504.13106731,0.00010992,2]
[323515431,1714062643395,-500.0,0.00010992,2]
[323515432,1714062643404,-500.0,0.00010992,2]
[323515433,1714062643413,-283.12,0.00010992,2]
[323515434,1714062643422,-500.0,0.00010992,2]
[323515435,1714062643431,-506.97470368,0.00010992,2]
[323515436,1714062643440,-500.0,0.00010992,2]
[323515437,1714062643449,-500.0,0.00010992,2]
[323515438,1714062643458,-500.0,0.00010992,2]
[323515439,1714062643467,-504.43612016,0.00010992,2]
[323515440,1714062643476,-505.19644691,0.00010992,2]
[323515441,1714062643485,-500.0,0.00010992,2]
[323515442,1714062643494,-500.0,0.00010992,2]
[323515443,1714062643504,-512.82034798,0.00010992,2]
[323515444,1714062643513,-523.25830865,0.00010992,2]
[323515445,1714062643523,-501.08779276,0.00010992,2]
[323515446,1714062643532,-500.0,0.00010992,2]
[323515447,1714062643542,-506.31408405,0.00010992,2]
[323515448,1714062643551,-507.90346658,0.00010992,2]
[323515449,1714062643560,-500.0,0.00010992,2]
[323515450,1714062643569,-505.34347603,0.00010992,2]
[323515451,1714062643578,-504.67642702,0.00010992,2]
[323515452,1714062643587,-503.94762802,0.00010992,2]
[323515453,1714062643597,-500.0,0.00010992,2]
[323515454,1714062643608,-429.54249029,0.00011,2]
[323515455,1714062643617,-223.68295345,0.00011,2]
[323515456,1714062643626,-1700.0,0.000111,4]
[323515457,1714062643635,-2600.0,0.000112,4]
[323515458,1714062643644,-1085.67,0.00011232,2]
[323515459,1714062643653,-500.0,0.00011232,2]
[323515460,1714062643662,-677.34,0.00011232,2]
[323515461,1714062643671,-500.0,0.00011232,2]
[323515462,1714062643680,-500.0,0.00011232,2]
[323515463,1714062643690,-500.0,0.00011232,2]
[323515464,1714062643699,-1108.48,0.00011232,2]
[323515465,1714062643709,-703.07,0.00011232,2]
[323515466,1714062643718,-500.0,0.00011232,2]
[323515467,1714062643727,-676.99,0.00011232,2]
[323515468,1714062643736,-5873.14,0.00011232,2]
[323515469,1714062643745,-3059.68,0.00011232,2]
[323515470,1714062643754,-500.0,0.00011232,2]
[323515471,1714062643763,-4003.22,0.00011232,2]
[323515472,1714062643773,-500.0,0.00011232,2]
[323515473,1714062643782,-500.0,0.00011232,2]
[323515474,1714062643791,-500.0,0.00011232,2]
[323515475,1714062643800,-500.0,0.00011232,2]
[323515476,1714062643810,-1696.09,0.00011232,2]
[323515477,1714062643819,-4739.01,0.00011232,2]
[323515478,1714062643828,-500.0,0.00011232,2]
[323515479,1714062643838,-677.09,0.00011232,2]
[323515480,1714062643847,-2193.77,0.00011232,2]
[323515481,1714062643861,-500.0,0.00011232,2]
[323515482,1714062643870,-4460.45,0.00011232,2]
[323515483,1714062643879,-500.0,0.00011232,2]
[323515484,1714062643888,-500.0,0.00011232,2]
[323515485,1714062643897,-826.13,0.00011232,2]
[323515486,1714062643907,-500.0,0.00011232,2]
[323515487,1714062643916,-791.54,0.00011232,2]
[323515488,1714062643926,-651.28,0.00011232,2]
[323515489,1714062643935,-500.0,0.00011232,2]
[323515490,1714062643946,-500.0,0.00011232,2]
[323515491,1714062643956,-500.0,0.00011232,2]
[323515492,1714062643965,-16239.15,0.00011232,2]
[323515493,1714062643975,-500.0,0.00011264,2]
[323515494,1714062643984,-500.0,0.00011264,2]
[323515495,1714062643994,-500.0,0.00011264,2]
[323515496,1714062644004,-467.87,0.00011264,2]
[323515497,1714062644013,-500.0,0.00011264,2]
[323515498,1714062644023,-500.0,0.00011264,2]
[323515499,1714062644033,-576.72,0.00011264,2]
[323515500,1714062644042,-500.0,0.00011264,2]
[323515501,1714062644052,-450.85159659,0.00011264,2]
[323515502,1714062644061,-500.0,0.00011264,2]
[323515503,1714062644071,-545.85,0.00011264,2]
[323515504,1714062644080,-574.05,0.00011264,2]
[323515505,1714062644090,-500.0,0.00011264,2]
[323515506,1714062644099,-500.0,0.00011264,2]
[323515507,1714062644109,-500.0,0.00011264,2]
[323515508,1714062644118,-500.0,0.00011264,2]
[323515509,1714062644128,-500.0,0.00011264,2]
[323515510,1714062644137,-500.0,0.00011264,2]
[323515511,1714062644147,-506.99,0.00011264,2]
[323515512,1714062644156,-500.0,0.00011264,2]
[323515513,1714062644165,-452.56106839,0.00011264,2]
[323515514,1714062644174,-517.58,0.00011264,2]
[323515515,1714062644186,-554.89,0.00011264,2]
[323515516,1714062644196,-500.0,0.00011264,2]
[323515517,1714062644205,-500.0,0.00011264,2]
[323515518,1714062644214,-500.0,0.00011264,2]
[323515519,1714062644223,-500.0,0.00011264,2]
[323515520,1714062644232,-500.0,0.00011264,2]
[323515521,1714062644241,-500.0,0.00011264,2]
[323515522,1714062644251,-500.0,0.00011264,2]
[323515523,1714062644261,-500.0,0.00011264,2]
[323515524,1714062644270,-500.0,0.00011264,2]
[323515525,1714062644280,-500.0,0.00011264,2]
[323515526,1714062644289,-500.0,0.00011264,2]
[323515527,1714062644298,-500.0,0.00011264,2]
[323515528,1714062644308,-500.0,0.00011264,2]
[323515529,1714062644316,-500.0,0.00011264,2]
[323515530,1714062644326,-500.0,0.00011264,2]
[323515531,1714062644335,-500.0,0.00011264,2]
[323515532,1714062644345,-500.0,0.00011264,2]
[323515533,1714062644355,-500.0,0.00011264,2]
[323515534,1714062644365,-500.0,0.00011264,2]
[323515535,1714062644375,-500.0,0.00011264,2]
[323515536,1714062644384,-500.0,0.00011264,2]
[323515537,1714062644393,-506.00049359,0.00011264,2]
[323515538,1714062644403,-500.0,0.00011264,2]
[323515539,1714062644412,-500.0,0.00011264,2]
[323515540,1714062644422,-500.0,0.00011264,2]
[323515541,1714062644431,-500.0,0.00011264,2]
[323515542,1714062644440,-500.0,0.00011264,2]
[323515543,1714062644449,-500.0,0.00011264,2]
[323515544,1714062644458,-500.0,0.00011264,2]
[323515545,1714062644468,-500.0,0.00011264,2]
[323515546,1714062644477,-500.0,0.00011264,2]
[323515547,1714062644485,-500.0,0.00011264,2]
[323515548,1714062644494,-500.0,0.00011264,2]
[323515549,1714062644503,-500.0,0.00011264,2]
[323515550,1714062644513,-500.0,0.00011264,2]
[323515551,1714062644522,-500.0,0.00011264,2]
[323515552,1714062644531,-500.0,0.00011264,2]
[323515553,1714062644540,-500.0,0.00011264,2]
[323515554,1714062644549,-500.0,0.00011264,2]
[323515555,1714062644558,-500.0,0.00011264,2]
[323515556,1714062644567,-500.0,0.00011264,2]
[323515557,1714062644576,-500.0,0.00011264,2]
[323515558,1714062644586,-194.12292892,0.00011264,2]
[323515559,1714062644595,-500.0,0.00011264,2]
[323515560,1714062644605,-500.0,0.00011264,2]
[323515561,1714062644614,-500.0,0.00011264,2]
[323515562,1714062644624,-500.0,0.00011264,2]
[323515563,1714062644633,-500.0,0.00011264,2]
[323515564,1714062644642,-500.0,0.00011264,2]
[323515565,1714062644651,-500.0,0.00011264,2]
[323515566,1714062644661,-500.0,0.00011264,2]
[323515567,1714062644670,-590.97705494,0.00011264,2]
[323515568,1714062644679,-500.0,0.00011264,2]
[323515569,1714062644689,-500.0,0.00011264,2]
[323515570,1714062644698,-500.0,0.00011264,2]
[323515571,1714062644707,-524.35353056,0.00011264,2]
[323515572,1714062644717,-500.0,0.00011264,2]
[323515573,1714062644726,-500.0,0.00011264,2]
[323515574,1714062644735,-500.0,0.00011264,2]
[323515575,1714062644743,-500.0,0.00011264,2]
[323515576,1714062644753,-500.0,0.00011264,2]
[323515577,1714062644762,-500.0,0.00011264,2]
[323515578,1714062644771,-500.0,0.00011264,2]
[323515579,1714062644780,-509.09096962,0.00011264,2]
[323515580,1714062644789,-500.0,0.00011264,2]
[323515581,1714062644798,-500.0,0.00011264,2]
[323515582,1714062644807,-333.29,0.00011264,2]
[323515583,1714062644816,-552.42,0.00011264,2]
[323515584,1714062644825,-500.0,0.00011264,2]
[323515585,1714062644835,-500.0,0.00011264,2]
[323515586,1714062644845,-500.0,0.00011264,2]
[323515587,1714062644855,-500.0,0.00011264,2]
[323515588,1714062644866,-500.0,0.00011264,2]
[323515589,1714062644877,-500.0,0.00011264,2]
[323515590,1714062644886,-500.0,0.00011264,2]
[323515591,1714062644895,-500.0,0.00011264,2]
[323515592,1714062644907,-500.0,0.00011264,2]
[323515593,1714062644916,-500.0,0.00011264,2]
[323515594,1714062644925,-343.42,0.00011264,2]
[323515595,1714062644934,-500.0,0.00011264,2]
[323515596,1714062644945,-500.0,0.00011264,2]
[323515597,1714062644955,-500.0,0.00011264,2]
[323515598,1714062644964,-500.0,0.00011264,2]
[323515599,1714062644973,-500.0,0.00011264,2]
[323515600,1714062645154,-500.0,0.00011264,2]
[323515601,1714062645164,-500.0,0.00011264,2]
[323515602,1714062645173,-500.0,0.00011264,2]
[323515603,1714062645182,-500.0,0.00011264,2]
[323515604,1714062645192,-500.0,0.00011264,2]
[323515605,1714062645201,-500.0,0.00011264,2]
[323515606,1714062645210,-500.0,0.00011264,2]
[323515607,1714062645220,-500.0,0.00011264,2]
[323515608,1714062645229,-500.0,0.00011264,2]
[323515609,1714062645238,-500.0,0.00011264,2]
[323515610,1714062645247,-304.93,0.00011264,2]
[323515611,1714062645256,-500.0,0.00011264,2]
[323515612,1714062645265,-500.0,0.00011264,2]
[323515613,1714062645275,-500.0,0.00011264,2]
[323515614,1714062645285,-500.0,0.00011264,2]
[323515615,1714062645294,-500.0,0.00011264,2]
[323515616,1714062645303,-500.0,0.00011264,2]
[323515617,1714062645312,-500.0,0.00011264,2]
[323515618,1714062645321,-500.0,0.00011264,2]
[323515619,1714062645330,-500.0,0.00011264,2]
[323515620,1714062645339,-1188.84,0.00011264,2]
[323515621,1714062645348,-500.0,0.00011264,2]
[323515622,1714062645358,-500.0,0.00011264,2]
[323515623,1714062645368,-500.0,0.00011264,2]
[323515624,1714062645377,-500.0,0.00011264,2]
[323515625,1714062645386,-500.0,0.00011264,2]
[323515626,1714062645395,-500.0,0.00011264,2]
[323515627,1714062645405,-549.57,0.00011264,2]
[323515628,1714062645414,-500.0,0.00011264,2]
[323515629,1714062645423,-500.0,0.00011264,2]
[323515630,1714062645433,-500.0,0.00011264,2]
[323515631,1714062645442,-500.0,0.00011264,2]
[323515632,1714062645451,-656.96,0.00011264,2]
[323515633,1714062645461,-500.0,0.00011264,2]
[323515634,1714062645470,-1258.16,0.00011264,2]
[323515635,1714062645479,-681.04,0.00011264,2]
[323515636,1714062645488,-573.12,0.00011264,2]
[323515637,1714062645498,-506.5,0.00011264,2]
[323515638,1714062645507,-985.92,0.00011264,2]
[323515640,1714062645517,-561.38,0.00011264,2]
[323515641,1714062645526,-1731.58,0.00011264,2]
[323515642,1714062645535,-620.95,0.00011264,2]
[323515643,1714062645543,-500.0,0.00011264,2]
[323515644,1714062645553,-500.0,0.00011264,2]
[323515645,1714062645562,-908.49,0.00011264,2]
[323515647,1714062645571,-500.0,0.00011264,2]
[323515648,1714062645580,-500.0,0.00011264,2]
[323515649,1714062645589,-500.0,0.00011264,2]
[323515650,1714062645598,-500.0,0.00011264,2]
[323515651,1714062645609,-500.0,0.00011264,2]
[323515652,1714062645618,-500.0,0.00011264,2]
[323515653,1714062645627,-500.0,0.00011264,2]
[323515654,1714062645637,-500.0,0.00011264,2]
[323515655,1714062645646,-3558.91,0.00011264,2]
[323515656,1714062645655,-591.58,0.00011264,2]
[323515657,1714062645664,-809.45,0.00011264,2]
[323515658,1714062645673,-500.0,0.00011264,2]
[323515659,1714062645683,-500.0,0.00011264,2]
[323515660,1714062645692,-799.27,0.00011264,2]
[323515661,1714062645701,-500.0,0.00011264,2]
[323515662,1714062645711,-500.0,0.00011264,2]
[323515663,1714062645720,-500.0,0.00011264,2]
[323515664,1714062645729,-500.0,0.00011264,2]
[323515665,1714062645738,-655.06,0.00011264,2]
[323515667,1714062645748,-500.0,0.00011264,2]
[323515669,1714062645758,-3035.45,0.00011264,2]
[323515670,1714062645767,-500.0,0.00011264,2]
[323515671,1714062645776,-1822.08,0.00011264,2]
[323515672,1714062645786,-500.0,0.00011264,2]
[323515673,1714062645795,-501.5,0.00011264,2]
[323515674,1714062645805,-500.0,0.00011264,2]
[323515675,1714062645813,-552.13,0.00011264,2]
[323515676,1714062645823,-500.0,0.00011264,2]
[323515677,1714062645832,-524.09869376,0.00011264,2]
[323515678,1714062645843,-500.0,0.00011264,2]
[323515679,1714062645857,-1483.01,0.00011264,2]
[323515680,1714062645866,-1450.09,0.00011264,2]
[323515681,1714062645876,-500.0,0.00011264,2]
[323515682,1714062645885,-500.0,0.00011264,2]
[323515683,1714062645896,-500.0,0.00011264,2]
[323515684,1714062645905,-500.0,0.00011264,2]
[323515685,1714062645915,-500.0,0.00011264,2]
[323515686,1714062645924,-615.93,0.00011264,2]
[323515687,1714062645934,-500.0,0.00011264,2]
[323515688,1714062645944,-500.0,0.00011264,2]
[323515689,1714062645953,-1987.4,0.00011264,2]
[323515690,1714062645962,-500.0,0.00011264,2]
[323515691,1714062645972,-500.0,0.00011264,2]
[323515692,1714062645981,-506.18,0.00011264,2]
[323515693,1714062645991,-4462.84,0.00011264,2]
[323515694,1714062646000,-500.0,0.00011264,2]
[323515695,1714062646010,-1333.68,0.00011264,2]
[323515696,1714062646019,-500.0,0.00011264,2]
[323515697,1714062646029,-964.33,0.00011264,2]
[323515698,1714062646039,-500.0,0.00011264,2]
[323515699,1714062646049,-500.0,0.00011264,2]
[323515700,1714062646059,-500.0,0.00011264,2]
[323515701,1714062646068,-7332.09,0.00011264,2]
[323515702,1714062646078,-500.0,0.00011264,2]
[323515703,1714062646088,-1003.07,0.00011264,2]
[323515704,1714062646097,-583.65,0.00011264,2]
[323515705,1714062646108,-795.02,0.00011264,2]
[323515706,1714062646118,-486.71356844,0.00011264,2]
[323515707,1714062646128,-500.0,0.00011264,2]
[323515708,1714062646137,-1713.94,0.00011264,2]
[323515709,1714062646146,-500.0,0.00011264,2]
[323515710,1714062646156,-500.0,0.00011264,2]
[323515711,1714062646166,-500.0,0.00011264,2]
[323515712,1714062646175,-500.0,0.00011264,2]
[323515713,1714062646185,-500.0,0.00011264,2]
[323515714,1714062646194,-500.0,0.00011265,2]
[323515715,1714062646203,-693.56,0.00011265,2]
[323515716,1714062646213,-500.0,0.00011265,2]
[323515717,1714062646222,-500.0,0.00011265,2]
[323515718,1714062646231,-551.5,0.00011265,2]
[323515719,1714062646240,-500.0,0.00011265,2]
[323515720,1714062646249,-528.55,0.00011265,2]
[323515721,1714062646259,-862.75,0.00011265,2]
[323515723,1714062646268,-500.0,0.00011265,2]
[323515725,1714062646277,-542.02,0.00011265,2]
[323515727,1714062646286,-500.0,0.00011265,2]
[323515728,1714062646295,-608.5,0.00011265,2]
[323515729,1714062646304,-803.28,0.00011265,2]
[323515730,1714062646314,-500.0,0.00011265,2]
[323515731,1714062646322,-585.18,0.00011265,2]
[323515732,1714062646331,-543.43,0.00011265,2]
[323515733,1714062646340,-500.0,0.00011265,2]
[323515734,1714062646351,-500.0,0.00011265,2]
[323515735,1714062646362,-508.69,0.00011265,2]
[323515736,1714062646371,-939.16,0.00011265,2]
[323515737,1714062646381,-500.0,0.00011265,2]
[323515738,1714062646390,-500.0,0.00011265,2]
[323515739,1714062646399,-500.0,0.00011265,2]
[323515740,1714062646408,-500.0,0.00011265,2]
[323515741,1714062646418,-317.32,0.00011265,2]
[323515742,1714062646427,-560.64,0.00011265,2]
[323515743,1714062646437,-500.0,0.00011265,2]
[323515744,1714062646446,-219.0,0.00011265,2]
[323515745,1714062646455,-500.0,0.00011265,2]
[323515746,1714062646464,-500.0,0.00011265,2]
[323515747,1714062646473,-519.65,0.00011265,2]
[323515748,1714062646482,-500.0,0.00011265,2]
[323515749,1714062646492,-500.0,0.00011265,2]
[323515750,1714062646500,-500.0,0.00011265,2]
[323515751,1714062646509,-500.0,0.00011265,2]
[323515752,1714062646518,-446.9,0.00011265,2]
[323515753,1714062646528,-500.0,0.00011265,2]
[323515754,1714062646537,-622.86,0.00011265,2]
[323515755,1714062646547,-500.0,0.00011265,2]
[323515756,1714062646561,-500.0,0.00011265,2]
[323515757,1714062646575,-740.18,0.00011265,2]
[323515758,1714062646589,-933.61,0.00011265,2]
[323515759,1714062646600,-500.0,0.00011265,2]
[323515760,1714062646615,-500.0,0.00011265,2]
[323515761,1714062646630,-500.0,0.00011265,2]
[323515762,1714062646644,-500.0,0.00011265,2]
[323515763,1714062646658,-500.0,0.00011265,2]
[323515764,1714062646669,-500.0,0.00011265,2]
[323515765,1714062646683,-500.0,0.00011265,2]
[323515766,1714062646696,-751.66,0.00011265,2]
[323515767,1714062646708,-500.0,0.00011265,2]
[323515768,1714062646722,-500.0,0.00011265,2]
[323515769,1714062646735,-500.0,0.00011265,2]
[323515770,1714062646746,-500.0,0.00011265,2]
[323515771,1714062646761,-500.0,0.00011265,2]
[323515772,1714062646773,-500.0,0.00011265,2]
[323515773,1714062646787,-500.0,0.00011265,2]
[323515774,1714062646800,-500.0,0.00011265,2]
[323515775,1714062646812,-500.0,0.00011265,2]
[323515776,1714062646825,-665.28,0.00011265,2]
[323515777,1714062646841,-150.0,0.00011265,2]
[323515778,1714062646857,-500.0,0.00011265,2]
[323515779,1714062646876,-500.0,0.00011265,2]
[323515780,1714062646890,-907.44,0.00011265,2]
[323515781,1714062646901,-500.0,0.00011265,2]
[323515782,1714062646912,-500.0,0.00011265,2]
[323515783,1714062646925,-663.93,0.00011265,2]
[323515784,1714062646939,-500.0,0.00011265,2]
[323515785,1714062646953,-500.0,0.00011265,2]
[323515786,1714062646966,-500.0,0.00011265,2]
[323515787,1714062646977,-500.0,0.00011265,2]
[323515788,1714062646990,-500.0,0.00011265,2]
[323515789,1714062647003,-500.0,0.00011265,2]
[323515790,1714062647016,-500.0,0.00011265,2]
[323515791,1714062647028,-500.0,0.00011265,2]
[323515792,1714062647041,-500.0,0.00011265,2]
[323515793,1714062647053,-500.0,0.00011265,2]
[323515794,1714062647066,-500.0,0.00011265,2]
[323515795,1714062647078,-512.69,0.00011265,2]
[323515796,1714062647091,-500.0,0.00011265,2]
[323515797,1714062647104,-500.0,0.00011265,2]
[323515798,1714062647117,-500.0,0.00011265,2]
[323515799,1714062647130,-4307.42,0.00011265,2]
[323515800,1714062647143,-705.33,0.00011265,2]
[323515801,1714062647155,-808.52,0.00011265,2]
[323515802,1714062647167,-500.0,0.00011265,2]
[323515803,1714062647179,-500.0,0.00011265,2]
[323515804,1714062647192,-641.46,0.00011265,2]
[323515805,1714062647204,-717.99,0.00011265,2]
[323515806,1714062647217,-500.0,0.00011265,2]
[323515807,1714062647233,-500.0,0.00011265,2]
[323515808,1714062647246,-703.41,0.00011265,2]
[323515809,1714062647258,-500.0,0.00011265,2]
[323515810,1714062647270,-707.72,0.00011265,2]
[323515811,1714062647282,-500.0,0.00011265,2]
[323515812,1714062647294,-500.0,0.00011265,2]
[323515813,1714062647306,-9481.65,0.00011265,2]
[323515814,1714062647318,-500.0,0.00011265,2]
[323515815,1714062647331,-500.0,0.00011265,2]
[323515816,1714062647343,-500.0,0.00011265,2]
[323515817,1714062647356,-500.0,0.00011265,2]
[323515818,1714062647368,-500.0,0.00011265,2]
[323515819,1714062647380,-4633.63,0.00011265,2]
[323515820,1714062647392,-949.77,0.00011265,2]
[323515821,1714062647405,-500.0,0.00011265,2]
[323515822,1714062647417,-500.0,0.00011265,2]
[323515823,1714062647430,-959.2,0.00011265,2]
[323515824,1714062647442,-500.0,0.00011265,2]
[323515825,1714062647454,-500.0,0.00011265,2]
[323515826,1714062647467,-500.0,0.00011265,2]
[323515827,1714062647480,-24576.39,0.00011265,2]
[323515828,1714062647491,-500.0,0.00011265,2]
[323515829,1714062647504,-500.0,0.00011265,2]
[323515830,1714062647516,-500.0,0.00011265,2]
[323515831,1714062647529,-531.67,0.00011265,2]
[323515832,1714062647541,-500.0,0.00011265,2]
[323515833,1714062647553,-2999.29,0.00011265,2]
[323515834,1714062647565,-500.0,0.00011265,2]
[323515835,1714062647577,-478.45,0.00011265,2]
[323515836,1714062647589,-585.03,0.00011265,2]
[323515837,1714062647601,-1007.84,0.00011265,2]
[323515838,1714062647614,-608.96,0.00011265,2]
[323515839,1714062647626,-1879.53,0.00011265,2]
[323515840,1714062647639,-588.96,0.00011265,2]
[323515841,1714062647651,-500.0,0.00011265,2]
[323515842,1714062647663,-500.0,0.00011265,2]
[323515843,1714062647676,-500.0,0.00011265,2]
[323515844,1714062647688,-500.0,0.00011265,2]
[323515845,1714062647701,-500.0,0.00011265,2]
[323515846,1714062647713,-1078.57,0.00011265,2]
[323515847,1714062647725,-500.0,0.00011265,2]
[323515848,1714062647738,-500.0,0.00011265,2]
[323515849,1714062647750,-1535.0,0.00011265,2]
[323515850,1714062647764,-500.0,0.00011265,2]
[323515851,1714062647776,-4072.05,0.00011265,2]
[323515852,1714062647789,-284.77958543,0.00011265,2]
[323515853,1714062647802,-516.91,0.00011265,2]
[323515854,1714062647815,-967.3,0.00011265,2]
[323515855,1714062647827,-3190.06,0.00011265,2]
[323515856,1714062647840,-500.0,0.00011265,2]
[323515857,1714062647855,-500.0,0.00011265,2]
[323515858,1714062647873,-500.0,0.00011265,2]
[323515859,1714062647887,-526.95,0.00011265,2]
[323515860,1714062647899,-263.23456761,0.00011265,2]
[323515861,1714062647912,-1391.72,0.00011265,2]
[323515862,1714062647924,-500.0,0.00011265,2]
[323515863,1714062647938,-979.73,0.00011265,2]
[323515864,1714062647952,-500.0,0.00011265,2]
[323515865,1714062647965,-573.0,0.00011265,2]
[323515866,1714062647978,-893.01,0.00011265,2]
[323515867,1714062647990,-500.0,0.00011265,2]
[323515868,1714062648003,-500.0,0.00011265,2]
[323515869,1714062648015,-500.0,0.00011265,2]
[323515870,1714062648029,-500.0,0.00011265,2]
[323515871,1714062648041,-704.66,0.00011265,2]
[323515872,1714062648054,-553.79,0.00011265,2]
[323515873,1714062648067,-500.0,0.00011265,2]
[323515874,1714062648079,-500.0,0.00011265,2]
[323515875,1714062648091,-500.0,0.00011265,2]
[323515876,1714062648105,-1850.58,0.00011265,2]
[323515877,1714062648119,-500.0,0.00011265,2]
[323515878,1714062648131,-500.0,0.00011265,2]
[323515879,1714062648144,-500.0,0.00011265,2]
[323515880,1714062648156,-500.0,0.00011265,2]
[323515881,1714062648168,-3297.58,0.00011265,2]
[323515882,1714062648180,-236.18,0.00011265,2]